bitfinex-derivatives/quotes_BTCF0:USTF0_20210707
["timestamp","ask_amount","ask_price","bid_price","bid_amount"]
[1625661176332,0.99240552,34845.0,34844.0,0.08936242]
[1625661176573,0.99240552,34845.0,34844.0,0.11536242]
[1625661177054,0.99240552,34845.0,34844.0,0.23536241]
[1625661180663,1.15777888,34847.0,34844.0,0.15109012]
[1625661180664,0.99463971,34847.0,34844.0,0.15109012]
[1625661180782,0.99454901,34846.0,34844.0,0.15109012]
[1625661180902,0.99454901,34846.0,34844.0,0.23535497]
[1625661181021,0.99449334,34845.0,34844.0,0.23535497]
[1625661181262,0.99449334,34845.0,34844.0,0.23026484]
[1625661181383,0.99449334,34845.0,34844.0,0.11026485]
[1625661181502,0.99458311,34846.0,34844.0,0.11535638]
[1625661181743,0.99471582,34845.0,34844.0,0.11535638]
[1625661181862,0.99471582,34845.0,34844.0,0.11026485]
[1625661182104,0.99471582,34845.0,34844.0,0.11535646]
[1625661182766,0.99471582,34845.0,34844.0,0.23535645]
[1625661182885,0.99465323,34846.0,34844.0,0.23535645]
[1625661183245,0.99465323,34846.0,34845.0,0.00509163]
[1625661183366,1.16027955,34847.0,34845.0,0.00509163]
[1625661183486,1.16027955,34847.0,34845.0,0.03109163]
[1625661183607,0.99482838,34846.0,34845.0,0.15109162]
[1625661183846,0.99482838,34846.0,34845.0,0.14599999]
[1625661184085,0.99482838,34846.0,34845.0,0.15109149]
[1625661184506,0.99482838,34846.0,34845.0,0.23533786]
[1625661184627,0.99482838,34846.0,34845.0,0.4759133]
[1625661184990,0.99482838,34846.0,34845.0,0.39166693]
[1625661186426,0.99482838,34846.0,34845.0,0.38657543]
[1625661186667,1.65783771,34846.0,34845.0,0.39166707]
[1625661187752,1.65783771,34846.0,34845.0,0.38657543]
[1625661188054,2.81797498,34846.0,34845.0,0.38657543]
[1625661188593,2.81797498,34846.0,34845.0,0.39166703]
[1625661188714,1.65783771,34846.0,34845.0,0.39166703]
[1625661188836,1.65783771,34846.0,34845.0,0.38657543]
[1625661189678,2.81815042,34846.0,34845.0,0.38657543]
[1625661191966,2.81815042,34846.0,34845.0,0.39166651]
[1625661193171,1.65783771,34846.0,34845.0,0.39166651]
[1625661193654,1.65783771,34846.0,34845.0,0.47594635]
[1625661195458,1.65783771,34846.0,34845.0,0.39166651]
[1625661195758,2.81818753,34846.0,34845.0,0.39166651]
[1625661195876,2.81818753,34846.0,34845.0,0.46286651]
[1625661196238,2.81818753,34846.0,34845.0,0.45777543]
[1625661196416,2.81818753,34846.0,34845.0,0.46286597]
[1625661196836,2.81818753,34846.0,34845.0,0.45777543]
[1625661196957,1.65783771,34846.0,34845.0,0.54714162]
[1625661198042,1.1604076,34847.0,34845.0,0.54714162]
[1625661198043,0.81724531,34847.0,34845.0,0.54714162]
[1625661198166,1.16024607,34848.0,34845.0,0.45777543]
[1625661198351,5.70347544,34862.0,34845.0,0.45777543]
[1625661198352,1.32634604,34852.0,34845.0,0.45777543]
[1625661198464,1.32634604,34852.0,34846.0,0.00509155]
[1625661198589,1.73292122,34856.0,34849.0,0.08426352]
[1625661198707,1.73292122,34856.0,34855.0,0.37946612]
[1625661198947,1.73292122,34856.0,34855.0,0.38455732]
[1625661199069,0.24057544,34856.0,34855.0,0.38455732]
[1625661199315,0.24057544,34856.0,34855.0,0.50455731]
[1625661199429,0.24057544,34856.0,34855.0,0.53055731]
[1625661199728,0.2530854,34856.0,34855.0,0.53055731]
[1625661199968,1.18658367,34859.0,34855.0,0.53055731]
[1625661200212,1.66313308,34871.0,34858.0,0.08426041]
[1625661200329,1.66313308,34871.0,34858.0,0.43008041]
[1625661200449,1.66388673,34872.0,34860.0,0.08425559]
[1625661200689,0.057,34882.0,34860.0,0.08425559]
[1625661200690,0.01247509,34870.0,34860.0,0.08425559]
[1625661200809,0.01247509,34870.0,34869.0,4.2961]
[1625661200930,1.66281471,34874.0,34869.0,4.2961]
[1625661200931,0.01247474,34871.0,34869.0,4.53478]
[1625661201171,0.01247449,34870.0,34869.0,4.56078]
[1625661201410,1.66397115,34876.0,34869.0,4.56078]
[1625661201652,0.01247314,34875.0,34870.0,0.00510511]
[1625661202012,0.01247305,34878.0,34870.0,0.00510511]
[1625661202255,1.66394843,34880.0,34870.0,0.00510511]
[1625661202552,1.66394843,34880.0,34869.0,4.53478]
[1625661202675,1.66187147,34882.0,34879.0,0.96230176]
[1625661202796,1.66187147,34882.0,34879.0,1.28487176]
[1625661202914,7.14898742,34894.0,34879.0,1.28487176]
[1625661202915,1.66231161,34883.0,34879.0,1.31087176]
[1625661203157,1.66278883,34884.0,34879.0,1.31087176]
[1625661203394,1.66283722,34885.0,34881.0,4.6497]
[1625661203517,1.66283722,34885.0,34882.0,0.11999999]
[1625661203754,1.66283722,34885.0,34884.0,0.026]
[1625661203875,1.66406035,34887.0,34884.0,0.026]
[1625661204356,1.66418145,34888.0,34886.0,0.11999999]
[1625661204475,1.66418145,34888.0,34886.0,0.39347999]
[1625661204597,1.66162094,34889.0,34886.0,0.39347999]
[1625661204716,1.66162094,34889.0,34888.0,0.48115088]
[1625661205076,1.66215198,34891.0,34888.0,0.28839352]
[1625661205557,1.66071505,34889.0,34888.0,0.28839352]
[1625661205797,1.66071505,34889.0,34888.0,0.16839353]
[1625661205917,1.66071505,34889.0,34888.0,0.14239353]
[1625661206037,1.66075353,34890.0,34888.0,0.14239353]
[1625661206277,1.66058163,34889.0,34888.0,0.14239353]
[1625661206762,0.24057544,34890.0,34888.0,0.14239353]
[1625661206877,1.89811135,34890.0,34888.0,0.26239352]
[1625661206997,1.89811135,34890.0,34888.0,0.28839352]
[1625661207356,0.24057544,34890.0,34888.0,0.28839352]
[1625661207477,0.24057544,34890.0,34889.0,0.11999999]
[1625661207597,1.89775594,34890.0,34889.0,0.14599999]
[1625661209038,1.89775594,34890.0,34888.0,0.14239353]
[1625661209519,1.65596487,34889.0,34888.0,0.14239353]
[1625661210120,0.24057544,34890.0,34888.0,0.14239353]
[1625661212162,1.49139901,34889.0,34888.0,0.14239353]
[1625661213305,1.49139901,34889.0,34887.0,0.04426808]
[1625661213547,1.48982248,34888.0,34887.0,0.04426808]
[1625661213784,2.81408392,34888.0,34887.0,0.04426808]
[1625661214869,3.05465936,34888.0,34887.0,0.04426808]
[1625661216551,1.56483688,34888.0,34887.0,0.04426808]
[1625661216673,1.42243688,34888.0,34887.0,0.04426808]
[1625661217272,1.42243688,34888.0,34887.0,3.69096808]
[1625661217273,0.73756032,34888.0,34887.0,3.69096808]
[1625661218656,1.4910854,34894.0,34887.0,3.69096808]
[1625661218837,1.49050968,34896.0,34887.0,3.98495808]
[1625661218954,1.49050968,34896.0,34895.0,0.72172632]
[1625661219075,0.08,34899.0,34895.0,0.96106632]
[1625661220941,0.08,34899.0,34896.0,0.24057544]
[1625661221540,0.08316451,34897.0,34896.0,0.24057544]
[1625661222500,6.451e-05,34897.0,34896.0,0.24057544]
[1625661222743,0.00016451,34899.0,34896.0,0.24057544]
[1625661242526,0.00016451,34899.0,34896.0,0.49035544]
[1625661245352,0.00016451,34899.0,34897.0,0.00510823]
[1625661248836,0.00016451,34899.0,34897.0,0.09190823]
[1625661249197,0.00016451,34899.0,34898.0,0.00510944]
[1625661250759,0.00016451,34899.0,34897.0,0.00510941]
[1625661250999,0.00016451,34899.0,34898.0,0.00510939]
[1625661251239,0.00016451,34899.0,34897.0,0.00510951]
[1625661251480,0.00016451,34899.0,34897.0,0.09130951]
[1625661251841,0.00016451,34899.0,34898.0,0.00510955]
[1625661253463,0.00016451,34899.0,34896.0,0.99035544]
[1625661253464,0.00016451,34899.0,34897.0,0.00510897]
[1625661253704,0.00016451,34899.0,34898.0,0.00510897]
[1625661254185,0.00016451,34899.0,34897.0,0.09070897]
[1625661254425,0.00016451,34899.0,34898.0,0.00510899]
[1625661255147,0.00016451,34899.0,34898.0,0.50510899]
[1625661258095,0.00016451,34899.0,34898.0,0.00510899]
[1625661258218,0.00016451,34899.0,34898.0,0.6738374]
[1625661259177,0.00016451,34899.0,34898.0,0.00510899]
[1625661259418,0.00016451,34899.0,34898.0,0.3397972]
[1625661260557,0.00016451,34899.0,34898.0,0.8397972]
[1625661260679,0.00016451,34899.0,34898.0,1.17486548]
[1625661260977,0.00016451,34899.0,34898.0,0.67486548]
[1625661261761,0.00016451,34899.0,34898.0,0.00510899]
[1625661262001,0.00016451,34899.0,34898.0,0.33999133]
[1625661263685,0.00016451,34899.0,34898.0,0.67504774]
[1625661263925,0.00016451,34899.0,34898.0,1.67994527]
[1625661264166,0.00016451,34899.0,34898.0,0.67504774]
[1625661264288,0.00016451,34899.0,34898.0,1.17504774]
[1625661264410,0.00016451,34899.0,34898.0,2.1798283]
[1625661266571,0.33462608,34908.0,34898.0,2.1798283]
[1625661266811,0.33470024,34909.0,34901.0,0.33501285]
[1625661266933,0.33470024,34909.0,34901.0,0.58278285]
[1625661267056,0.33470024,34909.0,34901.0,1.08278285]
[1625661267230,0.33470024,34909.0,34902.0,0.00510791]
[1625661267351,0.33470024,34909.0,34905.0,4.2008]
[1625661267476,0.33470024,34909.0,34908.0,0.72172632]
[1625661268374,0.66902295,34910.0,34908.0,0.72172632]
[1625661268616,0.66909619,34909.0,34908.0,0.72172632]
[1625661269398,1.67229054,34909.0,34908.0,0.72172632]
[1625661269636,0.66909619,34909.0,34908.0,0.72172632]
[1625661270421,0.66909619,34909.0,34908.0,0.72683446]
[1625661270841,1.67284299,34909.0,34908.0,0.72683446]
[1625661271202,1.67284299,34909.0,34908.0,0.72172632]
[1625661272347,2.8432059,34909.0,34908.0,0.72172632]
[1625661272464,2.85563743,34909.0,34908.0,0.72172632]
[1625661273545,2.8432059,34909.0,34908.0,0.72172632]
[1625661273786,1.67284299,34909.0,34908.0,0.7268345]
[1625661274146,1.67284299,34909.0,34908.0,0.72172632]
[1625661274386,1.67284299,34909.0,34908.0,0.7268344]
[1625661275412,0.68150668,34909.0,34908.0,0.7268344]
[1625661275650,1.68697043,34909.0,34908.0,0.7268344]
[1625661276313,0.68150668,34909.0,34908.0,0.7268344]
[1625661276554,1.67597453,34909.0,34908.0,0.7268344]
[1625661276796,1.68838506,34909.0,34908.0,0.7268344]
[1625661277036,1.67597453,34909.0,34908.0,0.7268344]
[1625661277276,1.68838506,34909.0,34908.0,0.7268344]
[1625661278960,2.86254942,34909.0,34908.0,0.7268344]
[1625661279442,1.68838506,34909.0,34908.0,0.7268344]
[1625661279682,2.86250115,34909.0,34908.0,0.7268344]
[1625661279922,4.20363497,34909.0,34908.0,0.7268344]
[1625661285452,4.20363497,34909.0,34908.0,1.0420644]
[1625661285936,1.67597453,34909.0,34908.0,1.0420644]
[1625661286055,1.17567453,34909.0,34908.0,1.0420644]
[1625661286179,0.33622016,34910.0,34908.0,2.72300382]
[1625661286415,0.33622016,34910.0,34909.0,1.00855526]
[1625661286654,0.33622016,34910.0,34909.0,1.01367385]
[1625661286895,1.00845817,34913.0,34909.0,1.01367385]
[1625661286896,0.33625756,34911.0,34909.0,1.01367385]
[1625661287136,0.33625756,34911.0,34909.0,1.00855526]
[1625661287375,0.33625756,34911.0,34910.0,0.0051185]
[1625661287617,0.33625756,34911.0,34910.0,0.24569394]
[1625661288998,0.33625756,34911.0,34910.0,0.31679394]
[1625661290627,1.00845817,34913.0,34910.0,0.31679394]
[1625661290867,0.50815817,34913.0,34912.0,0.3362031]
[1625661291117,0.50815817,34913.0,34912.0,0.8362031]
[1625661291228,0.33634618,34916.0,34912.0,1.67516205]
[1625661291347,0.33634618,34916.0,34912.0,1.68027933]
[1625661291469,0.33629695,34919.0,34915.0,1.17378507]
[1625661291588,0.33629695,34919.0,34915.0,1.51827507]
[1625661291710,0.33629356,34920.0,34918.0,0.72172632]
[1625661291948,0.67661916,34924.0,34918.0,0.72172632]
[1625661292068,0.67661916,34924.0,34919.0,0.5]
[1625661292189,0.17,34930.0,34919.0,0.50511702]
[1625661292190,1.3446583,34927.0,34919.0,0.50511702]
[1625661292430,1.34357017,34929.0,34920.0,0.0051174]
[1625661293511,1.34357017,34929.0,34919.0,0.00511729]
[1625661293632,1.34357017,34929.0,34928.0,0.72172632]
[1625661293753,1.34357017,34929.0,34928.0,0.95848632]
[1625661295195,1.34357017,34929.0,34928.0,0.72172632]
[1625661295317,2.85529185,34929.0,34928.0,0.72172632]
[1625661295677,2.86768853,34929.0,34928.0,0.72172632]
[1625661296759,2.85529185,34929.0,34928.0,0.72172632]
[1625661297241,2.86768874,34929.0,34928.0,0.72172632]
[1625661297363,2.86768874,34929.0,34918.0,0.24057544]
[1625661297487,3.21377874,34929.0,34918.0,0.24057544]
[1625661297602,1.3442036,34923.0,34918.0,0.24057544]
[1625661297726,1.3442036,34923.0,34922.0,0.24057544]
[1625661297844,0.24057544,34924.0,34922.0,0.54309544]
[1625661298086,0.24017544,34924.0,34922.0,0.54309544]
[1625661302407,0.24017544,34924.0,34922.0,0.24057544]
[1625661303007,1.58386753,34924.0,34922.0,0.24057544]
[1625661303130,1.80882753,34924.0,34922.0,0.24057544]
[1625661303247,1.34371868,34923.0,34922.0,0.24057544]
[1625661303728,1.58429412,34923.0,34918.0,0.24057544]
[1625661304212,1.34373208,34921.0,34918.0,0.24057544]
[1625661304691,1.34423967,34920.0,34916.0,0.24057544]
[1625661304934,1.34428619,34917.0,34916.0,0.24057544]
[1625661305052,1.62159619,34917.0,34916.0,0.24057544]
[1625661305773,2.10274707,34917.0,34916.0,0.24057544]
[1625661306495,3.61563511,34917.0,34916.0,0.24057544]
[1625661307456,3.61563511,34917.0,34912.0,0.31137544]
[1625661307697,1.34479969,34914.0,34912.0,0.31137544]
[1625661307817,0.24057544,34913.0,34912.0,0.31137544]
[1625661308900,0.74506513,34913.0,34912.0,0.31137544]
[1625661309382,0.74506513,34913.0,34912.0,0.0708]
[1625661311787,0.74506513,34913.0,34912.0,0.57354444]
[1625661312029,0.24057544,34913.0,34912.0,0.57354444]
[1625661312270,0.24057544,34913.0,34912.0,0.57866404]
[1625661312508,0.24057544,34913.0,34912.0,1.75023205]
[1625661313229,0.24057544,34913.0,34912.0,0.57866404]
[1625661313832,0.24057544,34913.0,34912.0,0.81923948]
[1625661313953,0.24057544,34913.0,34912.0,1.99111587]
[1625661315336,0.24057544,34913.0,34912.0,2.20435587]
[1625661316662,0.24057544,34913.0,34912.0,1.99111587]
[1625661317261,0.56198544,34913.0,34912.0,1.99111587]
[1625661317502,0.56198544,34913.0,34912.0,0.81923948]
[1625661318644,1.06649597,34913.0,34912.0,0.81923948]
[1625661318884,1.06649597,34913.0,34912.0,0.31649504]
[1625661319004,1.06649597,34913.0,34912.0,0.31137544]
[1625661319123,1.06649597,34913.0,34912.0,0.0708]
[1625661319604,2.24352219,34913.0,34912.0,0.0708]
[1625661321107,3.25253035,34913.0,34912.0,0.0708]
[1625661322664,3.23943035,34913.0,34912.0,0.0708]
[1625661323627,2.06240413,34913.0,34912.0,0.0708]
[1625661325008,3.2398154,34913.0,34912.0,0.0708]
[1625661325613,3.2398154,34913.0,34912.0,0.0001]
[1625661328075,0.54888544,34913.0,34912.0,0.0001]
[1625661328318,3.24046364,34913.0,34912.0,0.0001]
[1625661329818,3.24046364,34913.0,34912.0,1.7186]
[1625661330179,3.24046364,34913.0,34912.0,1.72372754]
[1625661336608,3.24046364,34913.0,34912.0,1.79482754]
[1625661341416,3.24046364,34913.0,34912.0,2.29564611]
[1625661344187,3.24046364,34913.0,34912.0,1.79482754]
[1625661344423,4.58821273,34913.0,34912.0,2.29594353]
[1625661346348,5.26219134,34913.0,34912.0,2.29594353]
[1625661346469,5.27457439,34913.0,34912.0,2.29594353]
[1625661348693,3.9268253,34913.0,34912.0,2.29594353]
[1625661349295,3.69934986,34913.0,34912.0,2.29594353]
[1625661349953,4.66165162,34913.0,34912.0,2.29594353]
[1625661351457,4.66165162,34913.0,34912.0,3.31154393]
[1625661351577,4.34024162,34913.0,34912.0,3.31154393]
[1625661351696,4.32785857,34913.0,34912.0,3.31154393]
[1625661351819,4.32785857,34913.0,34912.0,4.31253298]
[1625661351820,3.15034567,34913.0,34912.0,4.31253298]
[1625661351938,2.14102487,34913.0,34912.0,4.55310842]
[1625661352057,1.46704626,34913.0,34912.0,5.72008691]
[1625661352538,3.15214362,34913.0,34912.0,5.72008691]
[1625661353441,3.15214362,34913.0,34912.0,4.55310842]
[1625661353860,3.15214362,34913.0,34912.0,5.72103311]
[1625661354943,2.1411189,34913.0,34912.0,7.0555307]
[1625661355666,1.46704626,34913.0,34912.0,7.0555307]
[1625661356627,0.96230176,34913.0,34912.0,7.0555307]
[1625661359033,0.96230176,34913.0,34912.0,8.55526152]
[1625661359693,0.96230176,34913.0,34912.0,7.0555307]
[1625661360475,0.96230176,34913.0,34912.0,8.55670964]
[1625661362821,1.18066899,34916.0,34913.0,0.75619824]
[1625661363061,0.50608891,34915.0,34913.0,0.75619824]
[1625661363241,0.50608891,34915.0,34914.0,4.67453473]
[1625661363421,0.50598641,34916.0,34914.0,6.17482647]
[1625661363660,0.50598641,34916.0,34915.0,4.66758802]
[1625661363780,0.50598641,34916.0,34915.0,4.67271806]
[1625661364081,0.50598641,34916.0,34915.0,5.15386894]
[1625661365643,1.18047887,34917.0,34915.0,5.15386894]
[1625661365884,1.18047887,34917.0,34916.0,4.66616768]
[1625661366006,1.18047887,34917.0,34916.0,4.67129768]
[1625661366125,1.18047887,34917.0,34916.0,4.91187312]
[1625661367389,0.50588653,34917.0,34916.0,4.91187312]
[1625661368351,1.18024184,34917.0,34916.0,4.91187312]
[1625661370519,2.19161158,34917.0,34916.0,3.57868235]
[1625661377009,3.3711316,34917.0,34916.0,2.41214043]
[1625661379774,3.3711316,34917.0,34916.0,1.41224736]
[1625661380258,3.3711316,34917.0,34916.0,2.41049026]
[1625661380734,3.3711316,34917.0,34916.0,1.41224736]
[1625661380974,3.3711316,34917.0,34916.0,2.41060308]
[1625661383619,2.19161158,34917.0,34916.0,2.41060308]
[1625661384219,2.19161158,34917.0,34916.0,3.57477948]
[1625661385364,1.18024184,34917.0,34916.0,4.90430691]
[1625661385602,0.50588653,34917.0,34916.0,4.90430691]
[1625661389088,1.17997695,34917.0,34916.0,4.90430691]
[1625661390831,1.52284695,34917.0,34916.0,4.90430691]
[1625661391374,2.53399424,34917.0,34916.0,3.57477948]
[1625661396663,2.53399424,34917.0,34916.0,3.64587948]
[1625661397622,3.71404091,34917.0,34916.0,3.64587948]
[1625661398946,3.71404091,34917.0,34916.0,4.40207772]
[1625661403762,3.71404091,34917.0,34916.0,3.23790132]
[1625661404360,3.71404091,34917.0,34916.0,2.2395456]
[1625661404361,5.06335758,34917.0,34916.0,2.2395456]
[1625661404481,5.30393302,34917.0,34916.0,2.2395456]
[1625661404599,5.30393302,34917.0,34916.0,3.23306183]
[1625661405261,5.30393302,34917.0,34916.0,2.2395456]
[1625661405380,5.31629617,34917.0,34916.0,2.2395456]
[1625661407241,5.30393302,34917.0,34916.0,2.2395456]
[1625661407481,5.31629623,34917.0,34916.0,2.2395456]
[1625661407721,5.30393302,34917.0,34916.0,2.2395456]
[1625661408565,5.30393302,34917.0,34916.0,3.23364481]
[1625661409526,5.30393302,34917.0,34916.0,4.39288263]
[1625661410548,5.06335758,34917.0,34916.0,4.39288263]
[1625661414993,5.06335758,34917.0,34916.0,5.71857389]
[1625661415475,5.06335758,34917.0,34916.0,4.39288263]
[1625661416617,5.14955758,34917.0,34916.0,4.39288263]
[1625661417096,5.06335758,34917.0,34916.0,4.39288263]
[1625661417577,5.06335758,34917.0,34916.0,5.7186198]
[1625661417817,3.71404091,34917.0,34916.0,5.7186198]
[1625661418780,5.06485464,34917.0,34916.0,5.7186198]
[1625661419921,5.06485464,34917.0,34916.0,4.39288263]
[1625661420821,5.06485464,34917.0,34916.0,5.71887361]
[1625661422024,3.71404091,34917.0,34916.0,5.71887361]
[1625661422866,3.71404091,34917.0,34916.0,5.97006361]
[1625661429724,2.53399424,34917.0,34916.0,5.97006361]
[1625661430447,2.19112424,34917.0,34916.0,5.97006361]
[1625661442173,2.19112424,34917.0,34916.0,5.47011707]
[1625661442295,1.51964299,34924.0,34916.0,1.32419368]
[1625661442416,1.51964299,34924.0,34918.0,0.75619824]
[1625661442535,1.35057773,34921.0,34919.0,1.32775071]
[1625661442654,1.35057773,34921.0,34920.0,0.24057544]
[1625661442896,4.7272761,34921.0,34920.0,3.56511423]
[1625661444642,4.7272761,34921.0,34920.0,3.80568967]
[1625661445302,4.7272761,34921.0,34920.0,5.13312742]
[1625661445663,4.7272761,34921.0,34920.0,3.80568967]
[1625661446744,4.7272761,34921.0,34920.0,7.81428967]
[1625661447287,4.7272761,34921.0,34920.0,9.14306903]
[1625661448246,4.7272761,34921.0,34920.0,7.81428967]
[1625661449147,4.7272761,34921.0,34920.0,3.80568967]
[1625661451492,3.97107786,34921.0,34920.0,3.80568967]
[1625661453477,4.28287524,34921.0,34920.0,3.80568967]
[1625661453596,4.28287524,34921.0,34920.0,2.64389319]
[1625661454378,5.80225408,34921.0,34920.0,2.64389319]
[1625661454676,6.04282952,34921.0,34920.0,2.64389319]
[1625661454917,6.04282952,34921.0,34920.0,1.64806763]
[1625661455156,6.04282952,34921.0,34920.0,2.64683698]
[1625661455276,6.03044214,34921.0,34920.0,2.64171672]
[1625661455515,6.04283476,34921.0,34920.0,2.64683591]
[1625661456536,6.04283476,34921.0,34920.0,1.64806656]
[1625661456657,6.04283476,34921.0,34920.0,1.71916656]
[1625661457380,6.04283476,34921.0,34920.0,2.71789576]
[1625661457620,4.52330024,34921.0,34920.0,1.22316509]
[1625661457801,6.0428529,34921.0,34920.0,1.7225427]
[1625661459005,6.0428529,34921.0,34920.0,1.05674768]
[1625661459305,6.0428529,34921.0,34920.0,1.38981559]
[1625661459485,6.0428529,34921.0,34920.0,1.72272401]
[1625661459725,6.0428529,34921.0,34920.0,1.05674768]
[1625661459966,6.0428529,34921.0,34920.0,1.72272534]
[1625661460750,6.1277529,34921.0,34920.0,1.05674768]
[1625661461710,6.1277529,34921.0,34920.0,1.38984077]
[1625661462670,6.1277529,34921.0,34920.0,1.05701646]
[1625661463151,6.0428529,34921.0,34920.0,1.05701646]
[1625661464295,6.0428529,34921.0,34920.0,1.14030211]
[1625661466942,6.1283529,34921.0,34920.0,1.14030211]
[1625661467363,6.0428529,34921.0,34920.0,1.14030211]
[1625661468986,6.0428529,34921.0,34920.0,0.80720902]
[1625661469229,6.0428529,34921.0,34918.0,0.66628521]
[1625661469230,6.0428529,34921.0,34918.0,0.30613923]
[1625661469346,6.1278529,34921.0,34918.0,0.30613923]
[1625661469467,5.06586474,34919.0,34913.0,1.00085898]
[1625661469828,3.54506103,34914.0,34913.0,1.00085898]
[1625661469947,3.80338103,34914.0,34913.0,1.00085898]
[1625661470187,8.12258103,34914.0,34913.0,1.00085898]
[1625661470312,8.12258103,34914.0,34913.0,1.00597331]
[1625661470549,8.20718103,34914.0,34913.0,1.00597331]
[1625661470789,8.68833191,34914.0,34913.0,1.00597331]
[1625661471032,10.20760097,34914.0,34913.0,0.00511433]
[1625661471630,8.68833191,34914.0,34913.0,0.00511433]
[1625661472231,8.68833191,34914.0,34912.0,0.98875312]
[1625661472353,10.20716606,34914.0,34910.0,1.16726449]
[1625661472594,2.53144543,34911.0,34910.0,1.16726449]
[1625661472834,2.53144543,34911.0,34909.0,1.16750396]
[1625661472956,2.53144543,34911.0,34910.0,0.00510802]
[1625661473314,2.53144543,34911.0,34910.0,8.02e-06]
[1625661473916,2.53144543,34911.0,34909.0,0.00509373]
[1625661474158,2.53076868,34910.0,34909.0,0.00509373]
[1625661474819,2.77134412,34910.0,34909.0,0.00509373]
[1625661476619,2.77134412,34910.0,34908.0,0.24057544]
[1625661476979,2.52963178,34909.0,34908.0,0.24057544]
[1625661477399,2.52963178,34909.0,34908.0,0.24567545]
[1625661478241,2.52963178,34909.0,34908.0,0.24057544]
[1625661478840,2.77020722,34909.0,34908.0,0.24057544]
[1625661480764,2.77020722,34909.0,34904.0,0.24057544]
[1625661480885,0.24057544,34905.0,34904.0,0.24057544]
[1625661481005,3.0459891,34905.0,34901.0,1.16801645]
[1625661481124,3.0459891,34905.0,34899.0,0.50289239]
[1625661481247,1.86642016,34905.0,34899.0,0.50289239]
[1625661481365,4.1179,34900.0,34897.0,0.24057544]
[1625661481604,4.1179,34900.0,34898.0,0.00511364]
[1625661482448,4.2039,34900.0,34898.0,0.00511364]
[1625661482687,4.1179,34900.0,34898.0,0.00511364]
[1625661482811,0.24057544,34899.0,34898.0,0.00511364]
[1625661487435,0.24057544,34899.0,34897.0,0.24057544]
[1625661490798,0.24057544,34899.0,34894.0,0.18115088]
[1625661491037,0.24057544,34895.0,34894.0,0.18115088]
[1625661491159,0.50219544,34895.0,34894.0,0.18115088]
[1625661491339,0.50219544,34895.0,34894.0,0.18626655]
[1625661493262,0.50219544,34895.0,34894.0,0.18115088]
[1625661493381,0.50219544,34895.0,34894.0,0.25225088]
[1625661498369,0.50219544,34895.0,34894.0,0.30495088]
[1625661504137,0.50219544,34895.0,34894.0,0.31003689]
[1625661504500,0.50219544,34895.0,34894.0,0.30495088]
[1625661504742,0.50219544,34895.0,34894.0,0.31003686]
[1625661507093,0.24057544,34895.0,34894.0,0.31003686]
[1625661508116,0.24057544,34895.0,34894.0,5.25473686]
[1625661508355,0.24057544,34895.0,34894.0,0.31003686]
[1625661512807,0.24057544,34895.0,34894.0,0.12888598]
[1625661513054,1.26054838,34895.0,34894.0,0.12888598]
[1625661513410,1.24806731,34895.0,34894.0,0.12888598]
[1625661513650,1.26054845,34895.0,34894.0,0.12888598]
[1625661514373,1.24806731,34895.0,34894.0,0.12888598]
[1625661516718,0.24057544,34895.0,34894.0,0.12888598]
[1625661523209,0.24057544,34895.0,34894.0,1.13151218]
[1625661524232,0.24057544,34895.0,34894.0,5.96401218]
[1625661524414,0.24057544,34895.0,34894.0,7.13349951]
[1625661524657,0.24057544,34895.0,34894.0,8.4692381]
[1625661525137,0.24057544,34895.0,34894.0,9.97083532]
[1625661525253,0.24057544,34895.0,34894.0,10.05763532]
[1625661525374,0.24057544,34895.0,34894.0,9.97083532]
[1625661525495,0.24057544,34895.0,34894.0,10.21141076]
[1625661525613,0.24057544,34899.0,34894.0,10.21141076]
[1625661525735,1.00972676,34905.0,34894.0,10.21141076]
[1625661525857,1.00972676,34905.0,34902.0,1.0009254]
[1625661525975,1.00972676,34905.0,34902.0,1.3340254]
[1625661526096,1.0097142,34906.0,34903.0,1.00027143]
[1625661526337,1.00973649,34905.0,34904.0,0.00507841]
[1625661526582,1.00973649,34905.0,34903.0,0.00507854]
[1625661526821,1.00980613,34904.0,34903.0,0.00507854]
[1625661527060,2.1879078,34904.0,34903.0,0.00507854]
[1625661527179,2.1879078,34904.0,34901.0,0.00507877]
[1625661527299,1.00980613,34904.0,34901.0,0.00507877]
[1625661527419,1.17807615,34905.0,34903.0,0.48622957]
[1625661527663,2.18904064,34904.0,34903.0,0.48115088]
[1625661528021,2.18904064,34904.0,34903.0,0.48622966]
[1625661529104,3.53622848,34904.0,34903.0,0.48622966]
[1625661529344,4.20990433,34904.0,34903.0,0.48622966]
[1625661533736,4.20990433,34904.0,34903.0,0.79723966]
[1625661534096,4.20990433,34904.0,34903.0,1.46613781]
[1625661534337,2.86271649,34904.0,34903.0,2.46918154]
[1625661534818,2.86271649,34904.0,34903.0,1.46613781]
[1625661535058,2.86271649,34904.0,34903.0,2.46941623]
[1625661535301,2.94961649,34904.0,34903.0,2.46941623]
[1625661535420,2.86271649,34904.0,34903.0,2.46941623]
[1625661540282,4.21190114,34904.0,34903.0,2.46941623]
[1625661540704,4.21190114,34904.0,34903.0,1.46613781]
[1625661542444,3.20156174,34904.0,34903.0,1.46613781]
[1625661542566,4.21347359,34904.0,34903.0,1.46613781]
[1625661542866,4.21347359,34904.0,34903.0,2.47047783]
[1625661543046,2.86428894,34904.0,34903.0,2.47047783]
[1625661543829,2.86428894,34904.0,34903.0,3.64136691]
[1625661544547,2.86428894,34904.0,34903.0,2.47047783]
[1625661545510,2.86428894,34904.0,34903.0,3.6435533]
[1625661545754,1.6855877,34904.0,34903.0,3.6435533]
[1625661547197,1.6855877,34904.0,34903.0,2.47047783]
[1625661547735,1.6855877,34904.0,34903.0,3.64475386]
[1625661548578,1.6855877,34904.0,34903.0,2.47047783]
[1625661549361,2.86549779,34904.0,34903.0,2.47047783]
[1625661557660,1.6855877,34904.0,34903.0,3.6447973]
[1625661558622,1.6855877,34904.0,34903.0,8.1409973]
[1625661559101,0.67367585,34904.0,34903.0,8.1409973]
[1625661559341,0.50562564,34905.0,34903.0,9.98696317]
[1625661559584,1.1797361,34906.0,34904.0,4.93886589]
[1625661559703,0.50562474,34906.0,34905.0,0.67113048]
[1625661559822,0.50562474,34906.0,34905.0,4.69791335]
[1625661560064,0.91468168,34907.0,34905.0,4.69791335]
[1625661560065,0.74618949,34907.0,34905.0,4.70294881]
[1625661560183,0.24057544,34907.0,34906.0,4.6957025]
[1625661560303,0.24057544,34907.0,34906.0,4.70073791]
[1625661561024,0.5056104,34908.0,34906.0,4.70073791]
[1625661561384,0.5056104,34908.0,34907.0,4.69911118]
[1625661561624,0.5056104,34908.0,34907.0,4.93968662]
[1625661562345,1.17950045,34909.0,34907.0,3.59852209]
[1625661562585,1.17950045,34909.0,34908.0,3.35217743]
[1625661562706,1.17950045,34909.0,34908.0,3.35721266]
[1625661563789,0.50541179,34909.0,34908.0,3.35721266]
[1625661564933,1.17901881,34910.0,34908.0,3.35721266]
[1625661565117,1.17901881,34910.0,34909.0,3.35156226]
[1625661565357,0.50528756,34910.0,34909.0,3.35659726]
[1625661565594,0.50528756,34910.0,34909.0,3.5971727]
[1625661566014,1.17884534,34910.0,34909.0,3.5971727]